fUSD/lending_fUSD_20250306
["ID","MTS","AMOUNT","RATE_DAILY","PERIOD"]
[355551356,1741265476027,-500.0,0.00012991,2]
[355551357,1741265476036,-500.0,0.00012991,2]
[355551358,1741265476046,-500.0,0.00012991,2]
[355551359,1741265476056,-500.0,0.00012991,2]
[355551360,1741265476065,-500.0,0.00012991,2]
[355551361,1741265476075,-500.0,0.00012991,2]
[355551362,1741265476085,-500.0,0.00012991,2]
[355551363,1741265476094,-500.0,0.00012991,2]
[355551364,1741265476104,-500.0,0.00012991,2]
[355551365,1741265476113,-500.0,0.00012991,2]
[355551366,1741265476123,-500.0,0.00012991,2]
[355551367,1741265476132,-500.0,0.00012991,2]
[355551368,1741265476142,-500.0,0.00012991,2]
[355551369,1741265476151,-500.0,0.00012991,2]
[355551370,1741265476160,-500.0,0.00012991,2]
[355551371,1741265476170,-500.0,0.00012991,2]
[355551372,1741265476180,-500.0,0.00012991,2]
[355551373,1741265476189,-500.0,0.00012991,2]
[355551374,1741265476199,-500.0,0.00012991,2]
[355551375,1741265476208,-500.0,0.00012991,2]
[355551376,1741265476218,-500.0,0.00012991,2]
[355551377,1741265476227,-500.0,0.00012991,2]
[355551378,1741265476237,-500.0,0.00012991,2]
[355551379,1741265476246,-500.0,0.00012991,2]
[355551380,1741265476256,-500.0,0.00012991,2]
[355551381,1741265476265,-500.0,0.00012991,2]
[355551382,1741265476278,-500.0,0.00012991,2]
[355551383,1741265476288,-500.0,0.00012991,2]
[355551384,1741265476298,-500.0,0.00012991,2]
[355551385,1741265476307,-500.0,0.00012991,2]
[355551386,1741265476317,-1647.0806012,0.00012991,2]
[355551387,1741265476327,-1759.5103027,0.00012991,2]
[355551388,1741265476336,-1871.9400042,0.00012991,2]
[355551389,1741265476346,-1984.3697057,0.00012991,2]
[355551390,1741265476356,-2096.7994072,0.00012991,2]
[355551391,1741265476365,-4917.1701319,0.00012991,2]
[355551392,1741265476375,-5252.8161044,0.00012991,2]
[355551393,1741265476385,-5588.4620769,0.00012991,2]
[355551394,1741265476395,-5924.1080494,0.00012991,2]
[355551395,1741265476404,-6259.7540219,0.00012991,2]
[355551396,1741265476416,-532.2055275,0.00012991,2]
[355551397,1741265476426,-570.301033,0.00012991,2]
[355551398,1741265476440,-608.3965385,0.00012991,2]
[355551399,1741265476451,-646.492044,0.00012991,2]
[355551400,1741265476461,-684.5875495,0.00012991,2]
[355551401,1741265476471,-1188.0297226,0.00012991,2]
[355551402,1741265476481,-1273.0694122,0.00012991,2]
[355551403,1741265476491,-1358.1091017,0.00012991,2]
[355551404,1741265476502,-1443.1487913,0.00012991,2]
[355551405,1741265476513,-1528.1884809,0.00012991,2]
[355551406,1741265476525,-395.2618794,0.00012991,2]
[355551407,1741265476536,-422.5887128,0.00012991,2]
[355551408,1741265476546,-449.9155462,0.00012991,2]
[355551409,1741265476557,-477.2423796,0.00012991,2]
[355551410,1741265476567,-504.569213,0.00012991,2]
[355551411,1741265476578,-1233.589392,0.00012991,2]
[355551412,1741265476589,-1318.8748535,0.00012991,2]
[355551413,1741265476599,-1404.160315,0.00012991,2]
[355551414,1741265476609,-1489.4457765,0.00012991,2]
[355551415,1741265476620,-1574.731238,0.00012991,2]
[355551416,1741265476631,-3754.0220806,0.00012997,2]
[355551417,1741265476641,-4265.4966903,0.00012997,2]
[355551418,1741265476652,-743.20008474,0.00012997,2]
[355551419,1741265476662,-773.48,0.00012997,2]
[355551420,1741265476672,-773.48,0.00012997,2]
[355551421,1741265476682,-206.8917441,0.00012998,2]
[355551422,1741265476692,-408823.12697976,0.00012998,2]
[355551423,1741265476703,-773.48,0.00012999,2]
[355551424,1741265476714,-773.48,0.00012999,2]
[355551425,1741265476726,-773.48,0.00012999,2]
[355551426,1741265476736,-773.48,0.00012999,2]
[355551427,1741265476746,-773.48,0.00012999,2]
[355551428,1741265476757,-773.48,0.00012999,2]
[355551429,1741265476766,-773.48,0.00012999,2]
[355551430,1741265476778,-773.48,0.00012999,2]
[355551431,1741265476789,-773.48,0.00012999,2]
[355551432,1741265476799,-773.48,0.00012999,2]
[355551433,1741265476809,-773.5535,0.00012999,2]
[355551434,1741265476819,-488855.11835633,0.00013,2]
[355551435,1741265476829,-343802.81883858,0.00013,2]
[355551436,1741265476839,-754337.5531777,0.00013,2]
[355551437,1741265476849,-1180039.09542921,0.00013,2]
[355551438,1741265476858,-298314.00178627,0.00013,2]
[355551439,1741265476868,-846905.55446954,0.00013,2]
[355551440,1741265477172,-5983.14628371,0.00013,2]
[355551441,1741265504963,164.78828951,0.00013,30]
[355551443,1741265747263,60822.40521104,0.0001,2]
[355551444,1741266012614,155.0,0.0001,3]
[355551445,1741266041525,165.35,9.176e-05,2]
[355551446,1741266165049,1198.52,0.0001,2]
[355551450,1741266318932,155.0,0.0001,3]
[355551468,1741266583282,842.77,8.846e-05,2]
[355551469,1741266608675,9961.32247542,0.0001,2]
[355551470,1741266609036,155.0,0.0001,3]
[355551490,1741266631548,-178.82,0.00010894,2]
[355551491,1741266631558,-150.0,0.00010916,2]
[355551492,1741266631569,-150.0,0.00010959,2]
[355551493,1741266631580,-99.8325812,0.00010981,2]
[355551494,1741266631592,-1295.90846,0.00010981,2]
[355551495,1741266631605,-614.46,0.00010981,2]
[355551496,1741266631842,-399.42903,0.00010981,2]
[355551524,1741266637467,-1042.82955653,0.00010981,2]
[355551525,1741266637479,-20447.54037227,0.00010981,2]
[355551526,1741266637488,-2289.77514416,0.00010996,2]
[355551527,1741266637498,-27584.58275746,0.00011,2]
[355551528,1741266637507,-205.85890346,0.00011,2]
[355551529,1741266637516,-2289.77514416,0.00011029,2]
[355551530,1741266637526,-155.0,0.00011091,3]
[355551531,1741266637535,-2289.77514416,0.00011099,2]
[355551532,1741266637545,-842.77,0.00011109,2]
[355551533,1741266637555,-218.16,0.00011127,2]
[355551534,1741266637565,-371.05,0.0001122,2]
[355551535,1741266637574,-1500.0,0.00011246,2]
[355551536,1741266637583,-150.0,0.00011297,2]
[355551537,1741266637597,-5523.75,0.00011298,2]
[355551538,1741266637606,-602.38,0.0001147,2]
[355551539,1741266637615,-204.32,0.0001147,2]
[355551540,1741266637625,-292.81,0.00011507,2]
[355551541,1741266637634,-831.4352,0.00011674,2]
[355551542,1741266637644,-1459.0,0.00011688,2]
[355551543,1741266637654,-150.0,0.00011688,2]
[355551544,1741266637663,-640.0,0.00011688,2]
[355551545,1741266637673,-571.0,0.00011688,2]
[355551546,1741266637683,-786.0,0.00011688,2]
[355551547,1741266637693,-907.0,0.00011688,2]
[355551548,1741266637702,-1427.0,0.00011688,2]
[355551549,1741266637711,-1269.0,0.00011688,2]
[355551550,1741266637721,-541.0,0.00011688,2]
[355551551,1741266637730,-4041.0,0.0001177,2]
[355551552,1741266637739,-150.0,0.0001177,2]
[355551553,1741266637749,-3930.0,0.0001177,2]
[355551554,1741266637759,-1012.0,0.0001177,2]
[355551555,1741266637770,-888.24883152,0.00011774,2]
[355551557,1741266637779,-500.0,0.00011774,2]
[355551559,1741266637790,-366.22,0.00011774,2]
[355551561,1741266637799,-500.0,0.00011774,2]
[355551563,1741266637809,-500.0,0.00011774,2]
[355551565,1741266637818,-500.0,0.00011774,2]
[355551567,1741266637828,-500.0,0.00011774,2]
[355551569,1741266637837,-500.0,0.00011774,2]
[355551570,1741266637847,-167.52,0.00011774,2]
[355551572,1741266637856,-245.33,0.00011774,2]
[355551574,1741266637866,-507.7,0.00011774,2]
[355551576,1741266637875,-500.0,0.00011774,2]
[355551578,1741266637885,-500.0,0.00011774,2]
[355551580,1741266637894,-500.0,0.00011774,2]
[355551581,1741266637903,-500.0,0.00011774,2]
[355551583,1741266637913,-500.0,0.00011774,2]
[355551585,1741266637922,-500.0,0.00011774,2]
[355551587,1741266637931,-500.0,0.00011774,2]
[355551589,1741266637941,-506.71,0.00011774,2]
[355551591,1741266637950,-500.0,0.00011774,2]
[355551593,1741266637959,-500.0,0.00011774,2]
[355551595,1741266637967,-635.46,0.00011774,2]
[355551597,1741266637977,-500.0,0.00011774,2]
[355551598,1741266637986,-552.42,0.00011774,2]
[355551599,1741266637994,-500.0,0.00011774,2]
[355551600,1741266638003,-500.0,0.00011774,2]
[355551601,1741266638013,-500.0,0.00011774,2]
[355551602,1741266638023,-500.0,0.00011774,2]
[355551603,1741266638032,-500.0,0.00011774,2]
[355551604,1741266638041,-500.0,0.00011774,2]
[355551605,1741266638050,-500.0,0.00011774,2]
[355551606,1741266638060,-500.0,0.00011774,2]
[355551607,1741266638069,-500.0,0.00011774,2]
[355551608,1741266638078,-500.0,0.00011774,2]
[355551609,1741266638086,-500.0,0.00011774,2]
[355551610,1741266638096,-500.0,0.00011774,2]
[355551611,1741266638106,-500.0,0.00011774,2]
[355551612,1741266638114,-500.0,0.00011774,2]
[355551613,1741266638122,-500.0,0.00011774,2]
[355551614,1741266638130,-500.0,0.00011774,2]
[355551615,1741266638139,-500.0,0.00011774,2]
[355551616,1741266638148,-500.0,0.00011774,2]
[355551617,1741266638157,-500.0,0.00011774,2]
[355551618,1741266638167,-500.0,0.00011774,2]
[355551619,1741266638178,-529.52,0.00011774,2]
[355551620,1741266638187,-1095.23,0.00011774,2]
[355551621,1741266638197,-526.59,0.00011774,2]
[355551622,1741266638206,-758.23,0.00011774,2]
[355551623,1741266638215,-500.0,0.00011774,2]
[355551624,1741266638224,-500.0,0.00011774,2]
[355551625,1741266638233,-2200.59,0.00011774,2]
[355551626,1741266638243,-1079.47,0.00011774,2]
[355551627,1741266638252,-1126.07,0.00011774,2]
[355551628,1741266638262,-500.0,0.00011774,2]
[355551629,1741266638271,-2451.37,0.00011774,2]
[355551630,1741266638280,-500.0,0.00011774,2]
[355551631,1741266638290,-500.0,0.00011774,2]
[355551632,1741266638299,-500.0,0.00011774,2]
[355551633,1741266638308,-890.54,0.00011774,2]
[355551634,1741266638317,-500.0,0.00011774,2]
[355551635,1741266638327,-1255.73,0.00011774,2]
[355551636,1741266638336,-1156.37,0.00011774,2]
[355551637,1741266638345,-876.02,0.00011774,2]
[355551638,1741266638354,-550.0,0.00011774,2]
[355551639,1741266638364,-212.91092645,0.00011775,2]
[355551640,1741266638373,-512.98328356,0.00011775,2]
[355551641,1741266638382,-505.9255218,0.00011775,2]
[355551642,1741266638391,-206.83047523,0.00011775,2]
[355551643,1741266638401,-508.93565964,0.00011775,2]
[355551644,1741266638410,-630.58252619,0.00011775,2]
[355551645,1741266638419,-319.11511371,0.00011775,2]
[355551646,1741266638428,-500.0,0.00011775,2]
[355551647,1741266638438,-501.12604786,0.00011775,2]
[355551648,1741266638447,-353.4226629,0.00011775,2]
[355551649,1741266638457,-350.0,0.00011775,2]
[355551650,1741266638466,-521.30580231,0.00011775,2]
[355551651,1741266638475,-460.65415748,0.00011775,2]
[355551652,1741266638494,-39.34584252,0.00011775,2]
[355551653,1741266638504,-500.0,0.00011775,2]
[355551654,1741266638513,-646.43464689,0.00011775,2]
[355551655,1741266638523,-500.0,0.00011775,2]
[355551656,1741266638533,-500.0,0.00011775,2]
[355551657,1741266638542,-500.0,0.00011775,2]
[355551658,1741266638552,-518.97163631,0.00011775,2]
[355551659,1741266638561,-500.0,0.00011775,2]
[355551660,1741266638571,-500.0,0.00011775,2]
[355551661,1741266638581,-500.0,0.00011775,2]
[355551662,1741266638590,-512.23775438,0.00011775,2]
[355551663,1741266638600,-500.0,0.00011775,2]
[355551664,1741266638609,-500.0,0.00011775,2]
[355551665,1741266638618,-509.91897133,0.00011775,2]
[355551666,1741266638628,-507.26164729,0.00011775,2]
[355551667,1741266638637,-507.85029759,0.00011775,2]
[355551668,1741266638647,-514.40567871,0.00011775,2]
[355551669,1741266638656,-506.97535448,0.00011775,2]
[355551670,1741266638665,-500.0,0.00011775,2]
[355551671,1741266638674,-500.0,0.00011775,2]
[355551672,1741266638684,-505.36429903,0.00011775,2]
[355551673,1741266638694,-500.0,0.00011775,2]
[355551674,1741266638703,-505.97283104,0.00011775,2]
[355551675,1741266638713,-500.0,0.00011775,2]
[355551676,1741266638722,-243.53000122,0.00011775,2]
[355551677,1741266638731,-500.0,0.00011775,2]
[355551678,1741266638741,-500.0,0.00011775,2]
[355551679,1741266638750,-500.0,0.00011775,2]
[355551680,1741266638759,-505.48323209,0.00011775,2]
[355551681,1741266638768,-500.0,0.00011775,2]
[355551682,1741266638777,-500.0,0.00011775,2]
[355551683,1741266638787,-500.0,0.00011775,2]
[355551684,1741266638796,-500.0,0.00011775,2]
[355551685,1741266638805,-500.0,0.00011775,2]
[355551686,1741266638815,-500.0,0.00011775,2]
[355551687,1741266638824,-500.0,0.00011775,2]
[355551688,1741266638834,-500.0,0.00011775,2]
[355551689,1741266638843,-500.0,0.00011775,2]
[355551690,1741266638853,-500.0,0.00011775,2]
[355551691,1741266638862,-500.0,0.00011775,2]
[355551692,1741266638872,-500.0,0.00011775,2]
[355551693,1741266638881,-549.95962267,0.00011775,2]
[355551694,1741266638891,-500.0,0.00011775,2]
[355551695,1741266638900,-500.0,0.00011775,2]
[355551696,1741266638910,-500.0,0.00011775,2]
[355551697,1741266638919,-500.0,0.00011775,2]
[355551698,1741266638928,-500.0,0.00011775,2]
[355551699,1741266638938,-500.0,0.00011775,2]
[355551700,1741266638948,-500.0,0.00011775,2]
[355551701,1741266638957,-510.42739399,0.00011775,2]
[355551702,1741266638967,-500.0,0.00011775,2]
[355551703,1741266638976,-505.62178398,0.00011775,2]
[355551704,1741266638986,-270.74600647,0.00011775,2]
[355551705,1741266639005,-234.90276821,0.00011775,2]
[355551706,1741266639014,-500.0,0.00011775,2]
[355551707,1741266639025,-166.74723179,0.00011775,2]
[355551708,1741266639050,-365.97276821,0.00011775,2]
[355551709,1741266639060,-500.0,0.00011775,2]
[355551710,1741266639070,-197.77,0.00011775,2]
[355551711,1741266639079,-501.93846491,0.00011775,2]
[355551712,1741266639089,-359.17590854,0.00011775,2]
[355551713,1741266639101,-552.7,0.00011775,2]
[355551714,1741266639111,-505.31678629,0.00011775,2]
[355551715,1741266639120,-500.0,0.00011775,2]
[355551716,1741266639130,-500.0,0.00011775,2]
[355551717,1741266639140,-500.0,0.00011775,2]
[355551718,1741266639150,-485.37,0.000118,2]
[355551719,1741266639159,-550.0,0.00011802,2]
[355551720,1741266639169,-576.3,0.00011808,2]
[355551721,1741266639179,-18.3914904,0.00011808,2]
[355551722,1741266639282,-481.6085096,0.00011808,2]
[355551723,1741266639292,-500.0,0.00011808,2]
[355551724,1741266639302,-1117.22,0.00011808,2]
[355551725,1741266639311,-500.0,0.00011808,2]
[355551726,1741266639321,-943.12,0.00011808,2]
[355551727,1741266639331,-500.0,0.00011808,2]
[355551728,1741266639340,-1049.25,0.00011808,2]
[355551729,1741266639350,-1307.48,0.00011808,2]
[355551730,1741266639359,-1112.09,0.00011808,2]
[355551731,1741266639368,-826.84,0.00011808,2]
[355551732,1741266639378,-3462.0,0.00011808,2]
[355551733,1741266639387,-518.23,0.00011808,2]
[355551734,1741266639397,-987.22,0.00011808,2]
[355551735,1741266639407,-3415.47,0.00011808,2]
[355551736,1741266639416,-1019.97,0.00011809,2]
[355551737,1741266639426,-500.0,0.00011809,2]
[355551738,1741266639439,-1599.03,0.00011809,2]
[355551739,1741266639449,-564.258625,0.00011809,2]
[355551740,1741266639458,-1675.62,0.00011809,2]
[355551741,1741266639468,-859.588365,0.00011809,2]
[355551742,1741266639477,-500.0,0.00011809,2]
[355551743,1741266639487,-843.53,0.00011809,2]
[355551744,1741266639497,-1395.77,0.00011809,2]
[355551745,1741266639508,-757.53,0.00011809,2]
[355551746,1741266639517,-393.99481969,0.00011809,2]
[355551749,1741266639894,-956.76518031,0.00011809,2]
[355551750,1741266639904,-992.28,0.00011809,2]
[355551751,1741266639914,-1380.54,0.00011809,2]
[355551752,1741266639924,-2501.01,0.00011809,2]
[355551753,1741266639933,-478.54275969,0.00011809,2]
[355551754,1741266640065,-210.71724031,0.00011809,2]
[355551755,1741266640075,-135.7798506,0.00011809,2]
[355551795,1741266643374,-977.47,0.00011808,2]
[355551796,1741266643383,-1135.8001494,0.00011809,2]
[355551797,1741266643392,-1021.31,0.00011809,2]
[355551798,1741266643404,-500.0,0.00011809,2]
[355551799,1741266643422,-666.08,0.00011809,2]
[355551800,1741266643431,-500.0,0.00011809,2]
[355551801,1741266643441,-1049.44,0.00011809,2]
[355551802,1741266643450,-971.13,0.00011809,2]
[355551803,1741266643459,-500.0,0.00011809,2]
[355551804,1741266643469,-500.0,0.00011809,2]
[355551805,1741266643478,-921.63,0.00011809,2]
[355551806,1741266643488,-413.28004434,0.00011809,2]
[355551807,1741266643545,-617.22995566,0.00011809,2]
[355551808,1741266643555,-524.11,0.00011809,2]
[355551809,1741266643564,-964.11,0.00011809,2]
[355551810,1741266643573,-500.0,0.00011809,2]
[355551811,1741266643583,-507.46,0.00011809,2]
[355551812,1741266643592,-405.76592194,0.00011867,2]
[355551813,1741266643602,-248.312,0.00011886,2]
[355551814,1741266643612,-206.531,0.00011886,2]
[355551815,1741266643621,-319.85007866,0.00011948,2]
[355551816,1741266643631,-1278.0,0.00011953,2]
[355551817,1741266643640,-2032.0,0.00011953,2]
[355551818,1741266643650,-150.0,0.00011984,2]
[355551819,1741266643659,-743.24,0.00011999,2]
[355551820,1741266643669,-3013.572,0.00012,2]
[355551821,1741266643679,-174.662,0.00012,2]
[355551822,1741266643688,-6371.05038746,0.00012,2]
[355551824,1741266645544,-840.62198561,0.00011809,2]
[355551825,1741266645635,-1111.99999958,0.00011809,2]
[355551829,1741266946535,5032.4951048,0.000201,120]
[355551830,1741267160396,170.96,9.176e-05,2]
[355551850,1741267721983,185.36764093,9.964e-05,2]
[355551851,1741267722017,814.63235907,9.964e-05,2]
[355551858,1741267799888,827.93432998,8.219e-05,2]
[355551859,1741267799921,10.68567002,8.219e-05,2]
[355551866,1741267831807,-804.92353999,0.00010383,2]
[355551867,1741267831868,-227.26839274,0.00010383,2]
[355551868,1741267831879,-1032.19193273,0.00010411,2]
[355551869,1741267831888,-801.06723628,0.00010455,2]
[355551870,1741267831898,-838.62,0.00010472,2]
[355551871,1741267831907,-150.0,0.00010483,2]
[355551872,1741267831917,-300.38,0.00010511,2]
[355551873,1741267831927,-200.0,0.00010511,2]
[355551874,1741267831936,-5660.75054868,0.00010511,2]
[355551875,1741267831946,-150.0,0.00010526,2]
[355551876,1741267831955,-300.38,0.00010555,2]
[355551877,1741267831965,-300.38,0.000106,2]
[355551878,1741267831974,-300.38,0.00010644,2]
[355551879,1741267831984,-5502.64,0.00010655,2]
[355551880,1741267831994,-250.0,0.00010655,2]
[355551881,1741267832004,-300.38,0.00010688,2]
[355551882,1741267832014,-300.38,0.00010732,2]
[355551883,1741267832023,-801.06723628,0.00010741,2]
[355551884,1741267832032,-202.85,0.00010745,2]
[355551885,1741267832044,-300.38,0.00010777,2]
[355551887,1741267832054,-300.38,0.00010821,2]
[355551889,1741267832063,-300.38,0.00010865,2]
[355551891,1741267832072,-150.0,0.00010883,7]
[355551893,1741267832082,-441.44,0.000109,2]
[355551894,1741267832091,-441.44,0.000109,2]
[355551896,1741267832100,-300.38,0.00010909,2]
[355551898,1741267832110,-300.38,0.00010954,2]
[355551900,1741267832120,-185.52,0.00010967,2]
[355551901,1741267832129,-371.09768962,0.0001099,2]
[355551902,1741267832138,-1500.0,0.00010993,2]
[355551903,1741267832148,-300.38,0.00010998,2]
[355551904,1741267832158,-150.0,0.00010998,2]
[355551905,1741267832167,-550.0,0.00011,2]
[355551906,1741267832176,-206.87155258,0.00011,2]
[355551908,1741267832186,-206.8715525,0.00011,2]
[355551910,1741267832197,-618.55729159,0.00011002,2]
[355551912,1741267832207,-618.55729159,0.00011005,2]
[355551914,1741267832218,-371.09768962,0.00011025,2]
[355551916,1741267832228,-801.06723628,0.00011027,2]
[355551918,1741267832238,-300.38,0.00011042,2]
[355551920,1741267832248,-206.8715525,0.0001106,2]
[355551922,1741267832259,-371.09768962,0.00011074,2]
[355551924,1741267832269,-618.55729159,0.00011075,2]
[355551926,1741267832279,-300.38,0.00011086,2]
[355551928,1741267832292,-3342.6757479,0.0001111,2]
[355551930,1741267832304,-2779.63621602,0.0001111,2]
[355551935,1741267832339,-5025.40673454,0.0001111,2]
[355551937,1741267832351,-2892.3864979,0.0001111,2]
[355551952,1741267837795,-882.90944848,0.0001111,2]
[355551963,1741267839755,-466.867531,0.0001111,2]
[355551964,1741267839892,-254.90250002,0.0001111,2]
[355551965,1741267839904,-253.70300096,0.0001111,2]
[355551966,1741267839915,-255.57805999,0.0001111,2]
[355551967,1741267839975,-21770.85679367,0.0001111,2]
[355551968,1741267839987,-7950.15076293,0.0001111,2]
[355551969,1741267840062,-43021.57235085,0.0001111,2]
[355551986,1741267843627,-768.09376526,0.0001111,2]
[355551989,1741267845670,-1438.9679525,0.0001111,2]
[355551990,1741267845685,-1410.72266856,0.0001111,2]
[355551991,1741267845814,-9033.9,0.0001111,2]
[355551992,1741267845907,-830.12969053,0.0001111,2]
[355551993,1741267845921,-6843.95524629,0.0001111,2]
[355551994,1741267845935,-69402.34059547,0.0001111,2]
[355551995,1741267845945,-300.38,0.00011131,2]
[355551996,1741267845955,-206.8715525,0.0001114,2]
[355551997,1741267845965,-300.38,0.00011175,2]
[355551998,1741267845976,-168.26,0.00011195,2]
[355551999,1741267845987,-1000.0,0.00011209,2]
[355552000,1741267845999,-300.38,0.00011219,2]
[355552001,1741267846012,-206.8715525,0.0001122,2]
[355552002,1741267846025,-300.38,0.00011263,2]
[355552003,1741267846034,-206.8715525,0.000113,2]
[355552004,1741267846046,-300.38,0.00011308,2]
[355552005,1741267846056,-29422.48945119,0.00011339,2]
[355552006,1741267846066,-300.38,0.00011352,2]
[355552007,1741267846076,-1461.26403038,0.0001137,2]
[355552008,1741267846088,-150.9,0.00011378,2]
[355552009,1741267846099,-206.8715525,0.0001138,2]
[355552010,1741267846110,-206.8715525,0.0001146,2]
[355552011,1741267846121,-500.0,0.00011468,2]
[355552012,1741267846131,-200.87280512,0.00011468,2]
[355552013,1741267846141,-500.0,0.00011468,2]
[355552014,1741267846151,-500.0,0.00011468,2]
[355552015,1741267846162,-500.0,0.00011468,2]
[355552016,1741267846175,-500.0,0.00011468,2]
[355552017,1741267846185,-500.0,0.00011468,2]
[355552018,1741267846202,-500.0,0.00011468,2]
[355552019,1741267846213,-500.0,0.00011468,2]
[355552020,1741267846224,-712.28,0.00011468,2]
[355552021,1741267846234,-234.62280746,0.00011468,3]
[355552022,1741267846245,-137688.63594316,0.00011469,2]
[355552023,1741267846258,-565.77725999,0.00011469,2]
[355552024,1741267846276,-8679.6,0.00011469,2]
[355552029,1741268371507,170.96,8.172e-05,2]
[355552031,1741268470682,336.98,0.0001015,2]
[355552032,1741268485600,545.55,0.00010097,2]
[355552033,1741268566768,250.0,0.00010032,2]
[355552034,1741268576497,1811.22,0.00010031,2]
[355552035,1741268592658,150.0,0.00010063,7]
[355552036,1741268679200,379.99,9.979e-05,2]
[355552037,1741268701497,419.61,0.00010007,2]
[355552038,1741268701733,419.61,0.00010049,2]
[355552039,1741268701933,419.61,0.00010091,2]
[355552040,1741268702151,419.61,0.00010133,2]
[355552041,1741268702407,419.61,0.00010175,2]
[355552042,1741268702759,419.61,0.00010218,2]
[355552043,1741268724962,3930.46,9.694e-05,2]
[355552044,1741268731638,300.0,9.694e-05,2]
[355552045,1741268815518,200.0,0.00010167,2]
[355552046,1741268844567,806.39,8.219e-05,2]
[355552047,1741268855663,1000.0,9.703e-05,2]
[355552048,1741268901436,162.04,0.0002,120]
[355552049,1741268922840,500.0,9.715e-05,2]
[355552050,1741268938636,23900.0,9.715e-05,2]
[355552051,1741268939872,3047.52,9.715e-05,2]
[355552053,1741268998396,3471.65663999,0.0001,2]
[355552056,1741269031889,-419.61,0.0001026,2]
[355552057,1741269031899,-150.0,0.0001028,2]
[355552058,1741269031908,-550.0,0.0001028,2]
[355552059,1741269031918,-112.24132041,0.00010301,2]
[355552060,1741269031930,-428.59140228,0.00010301,2]
[355552061,1741269031942,-240.97727731,0.00010301,2]
[355552062,1741269031951,-9.21875094,0.00010302,2]
[355552063,1741269031969,-410.39124906,0.00010302,2]
[355552064,1741269031979,-130.10670682,0.00010305,2]
[355552065,1741269032101,-19.89329318,0.00010305,2]
[355552066,1741269032110,-162.34,0.0001034,2]
[355552067,1741269032120,-180.5705118,0.00010344,2]
[355552068,1741269032150,-239.0394882,0.00010344,2]
[355552069,1741269032159,-419.61,0.00010386,2]
[355552070,1741269032169,-419.61,0.00010428,2]
[355552071,1741269032178,-1917.5705118,0.00010454,2]
[355552072,1741269032190,-294.33656805,0.00010454,2]
[355552073,1741269032201,-475.22000005,0.00010454,2]
[355552074,1741269032213,-413.27807374,0.00010454,2]
[355552075,1741269035708,-6186.76748901,0.00010454,2]
[355552076,1741269035773,-712.81735735,0.00010454,2]
[355552077,1741269035783,-2672.51,0.00010454,2]
[355552078,1741269035793,-2275.0325184,0.00010454,2]
[355552079,1741269035805,-1472.14757156,0.00010454,2]
[355552080,1741269035816,-1208.7485247,0.00010454,2]
[355552081,1741269035828,-752.76793986,0.00010454,2]
[355552082,1741269035839,-4030.11038381,0.00010454,2]
[355552083,1741269035852,-261.18306167,0.00010454,2]
[355552084,1741269035864,-1510.81,0.00010455,2]
[355552085,1741269035874,-6827.43,0.00010455,2]
[355552087,1741269035885,-79748.88,0.00010455,2]
[355552089,1741269035895,-806.39,0.00010461,2]
[355552091,1741269035905,-419.61,0.0001047,2]
[355552093,1741269035915,-150.0,0.00010493,2]
[355552095,1741269035924,-419.61,0.00010513,2]
[355552096,1741269035933,-282.34,0.00010517,2]
[355552097,1741269035943,-165.4,0.00010533,2]